[Event "Titled Tuesday Blitz February 01 B 2022"]
[White "Novikov, Evgenij"]
[Black "Naroditsky, Daniel"]
[WhiteFideId "4125380"]
[BlackFideId "2026961"]
[WhiteElo "2242"]
[BlackElo "2608"]
[Result "0-1"]
[Round "06"]
[TimeControl "180+1"]
[Date "2022.02.01"]
[WhiteClock "0:00:06"]
[BlackClock "0:01:34"]

1. d4 {[%clk 0:03:00]}  Nf6 {[%clk 0:03:00]} 2. Nf3 {[%clk 0:03:00]}  g6 {[%clk 0:03:00]} 3. c4 {[%clk 0:02:59]}  Bg7 {[%clk 0:03:01]} 4. Nc3 {[%clk 0:03:00]}  O-O {[%clk 0:03:02]} 5. e4 {[%clk 0:03:00]}  d6 {[%clk 0:03:03]} 6. Be2 {[%clk 0:03:01]}  e5 {[%clk 0:03:03]} 7. d5 {[%clk 0:03:01]}  Nh5 {[%clk 0:03:02]} 8. O-O {[%clk 0:02:57]}  Nf4 {[%clk 0:03:01]} 9. Ne1 {[%clk 0:02:54]}  Nxe2+ {[%clk 0:02:59]} 10. Qxe2 {[%clk 0:02:55]}  f5 {[%clk 0:02:59]} 11. exf5 {[%clk 0:02:51]}  gxf5 {[%clk 0:02:59]} 12. f4 {[%clk 0:02:50]}  e4 {[%clk 0:03:00]} 13. Be3 {[%clk 0:02:50]}  Nd7 {[%clk 0:03:00]} 14. Nc2 {[%clk 0:02:49]}  Nc5 {[%clk 0:02:59]} 15. Bd4 {[%clk 0:02:43]}  Rf7 {[%clk 0:02:59]} 16. Kh1 {[%clk 0:02:25]}  Bd7 {[%clk 0:02:53]} 17. Rad1 {[%clk 0:01:36]}  Bxd4 {[%clk 0:02:51]} 18. Rxd4 {[%clk 0:01:28]}  Qf6 {[%clk 0:02:51]} 19. Qe3 {[%clk 0:01:27]}  Rg7 {[%clk 0:02:50]} 20. Ne1 {[%clk 0:01:23]}  a5 {[%clk 0:02:49]} 21. b3 {[%clk 0:01:19]}  Kh8 {[%clk 0:02:49]} 22. Nb5 {[%clk 0:01:10]}  Bxb5 {[%clk 0:02:48]} 23. cxb5 {[%clk 0:01:11]}  Rag8 {[%clk 0:02:49]} 24. Rf2 {[%clk 0:01:09]}  Qh4 {[%clk 0:02:49]} 25. Rdd2 {[%clk 0:01:00]}  h6 {[%clk 0:02:44]} 26. Qd4 {[%clk 0:00:53]}  Kh7 {[%clk 0:02:44]} 27. Rde2 {[%clk 0:00:52]}  Rg4 {[%clk 0:02:39]} 28. Qd2 {[%clk 0:00:46]}  R8g7 {[%clk 0:02:31]} 29. Qe3 {[%clk 0:00:39]}  Rg3 {[%clk 0:02:28]} 30. Qd2 {[%clk 0:00:38]}  e3 {[%clk 0:01:37]} 31. Rxe3 {[%clk 0:00:32]}  Rxe3 {[%clk 0:01:38]} 32. Qxe3 {[%clk 0:00:30]}  Re7 {[%clk 0:01:39]} 33. g3 {[%clk 0:00:14]}  Rxe3 {[%clk 0:01:39]} 34. gxh4 {[%clk 0:00:13]}  Rxe1+ {[%clk 0:01:40]} 35. Kg2 {[%clk 0:00:14]}  Kg6 {[%clk 0:01:35]} 36. Kf3 {[%clk 0:00:09]}  Rd1 {[%clk 0:01:31]} 37. Re2 {[%clk 0:00:08]}  Rd3+ {[%clk 0:01:32]} 38. Kg2 {[%clk 0:00:07]}  Ne4 {[%clk 0:01:33]} 39. Rc2 {[%clk 0:00:06]}  Rd2+ {[%clk 0:01:33]} 40. Rxd2 {[%clk 0:00:06]}  Nxd2 {[%clk 0:01:34]} 0-1


[Site "https://www.chess.com"]

[Event "Titled Tuesday Blitz February 01 B 2022"]
[White "Praggnanandhaa R"]
[Black "Kobalia, Mikhail"]
[WhiteFideId "25059530"]
[BlackFideId "4119150"]
[WhiteElo "2599"]
[BlackElo "2667"]
[Result "1-0"]
[Round "06"]
[TimeControl "180+1"]
[Date "2022.02.01"]
[WhiteClock "0:00:11"]
[BlackClock "0:00:02"]

1. Nf3 {[%clk 0:03:00]}  d5 {[%clk 0:02:58]} 2. e3 {[%clk 0:02:59]}  Nf6 {[%clk 0:02:57]} 3. c4 {[%clk 0:03:00]}  c6 {[%clk 0:02:57]} 4. d4 {[%clk 0:03:01]}  Bf5 {[%clk 0:02:56]} 5. Nc3 {[%clk 0:03:00]}  e6 {[%clk 0:02:56]} 6. Nh4 {[%clk 0:02:59]}  Bg6 {[%clk 0:02:56]} 7. Qb3 {[%clk 0:02:56]}  Qc7 {[%clk 0:02:54]} 8. Nxg6 {[%clk 0:02:54]}  hxg6 {[%clk 0:02:54]} 9. g3 {[%clk 0:02:54]}  Nbd7 {[%clk 0:02:53]} 10. Bg2 {[%clk 0:02:52]}  Be7 {[%clk 0:02:50]} 11. O-O {[%clk 0:02:51]}  O-O {[%clk 0:02:49]} 12. Bd2 {[%clk 0:02:52]}  Nb6 {[%clk 0:02:44]} 13. cxd5 {[%clk 0:02:47]}  exd5 {[%clk 0:02:43]} 14. Rfc1 {[%clk 0:02:47]}  Nc4 {[%clk 0:02:40]} 15. Be1 {[%clk 0:02:47]}  Qd7 {[%clk 0:02:36]} 16. e4 {[%clk 0:02:44]}  Rfd8 {[%clk 0:02:10]} 17. exd5 {[%clk 0:02:37]}  cxd5 {[%clk 0:01:59]} 18. Nxd5 {[%clk 0:02:37]}  Nxd5 {[%clk 0:01:58]} 19. Rxc4 {[%clk 0:02:33]}  Nb6 {[%clk 0:01:54]} 20. Rcc1 {[%clk 0:02:28]}  Qxd4 {[%clk 0:01:53]} 21. a4 {[%clk 0:02:27]}  Rab8 {[%clk 0:01:47]} 22. a5 {[%clk 0:02:23]}  Nd7 {[%clk 0:01:45]} 23. Rd1 {[%clk 0:02:22]}  Nc5 {[%clk 0:01:36]} 24. Qc2 {[%clk 0:02:16]}  Qg4 {[%clk 0:01:24]} 25. b4 {[%clk 0:01:46]}  Ne6 {[%clk 0:01:18]} 26. h3 {[%clk 0:01:46]}  Qh5 {[%clk 0:01:08]} 27. Bc3 {[%clk 0:01:36]}  Rxd1+ {[%clk 0:01:03]} 28. Qxd1 {[%clk 0:01:34]}  Rc8 {[%clk 0:00:45]} 29. Qxh5 {[%clk 0:01:27]}  gxh5 {[%clk 0:00:46]} 30. Be1 {[%clk 0:01:28]}  Rc7 {[%clk 0:00:41]} 31. h4 {[%clk 0:01:27]}  Nd4 {[%clk 0:00:37]} 32. Rd1 {[%clk 0:01:23]}  Bf6 {[%clk 0:00:35]} 33. Kf1 {[%clk 0:01:09]}  b6 {[%clk 0:00:34]} 34. a6 {[%clk 0:01:03]}  Nc2 {[%clk 0:00:22]} 35. Bd2 {[%clk 0:00:59]}  Rd7 {[%clk 0:00:20]} 36. Bf3 {[%clk 0:00:52]}  g6 {[%clk 0:00:16]} 37. b5 {[%clk 0:00:50]}  Rd6 {[%clk 0:00:11]} 38. Bf4 {[%clk 0:00:36]}  Rxd1+ {[%clk 0:00:10]} 39. Bxd1 {[%clk 0:00:37]}  Nd4 {[%clk 0:00:10]} 40. Bb8 {[%clk 0:00:27]}  Bd8 {[%clk 0:00:09]} 41. Ba4 {[%clk 0:00:18]}  Ne6 {[%clk 0:00:09]} 42. Bb3 {[%clk 0:00:16]}  Bc7 {[%clk 0:00:09]} 43. Bxa7 {[%clk 0:00:12]}  Nc5 {[%clk 0:00:09]} 44. Bc4 {[%clk 0:00:12]}  Kg7 {[%clk 0:00:09]} 45. Ke2 {[%clk 0:00:12]}  f5 {[%clk 0:00:09]} 46. Ke3 {[%clk 0:00:12]}  Kf6 {[%clk 0:00:09]} 47. Kd4 {[%clk 0:00:12]}  Ne4 {[%clk 0:00:02]} 48. Kd5 {[%clk 0:00:11]}  Nxf2 {[%clk 0:00:02]} 49. Kc6 {[%clk 0:00:11]} 1-0


[Site "https://www.chess.com"]

[Event "Titled Tuesday Blitz February 01 B 2022"]
[White "Ramirez, Alejandro"]
[Black "Nesterov, Arseniy"]
[WhiteFideId "6500617"]
[BlackFideId "24198455"]
[WhiteElo "2694"]
[BlackElo "2489"]
[Result "0-1"]
[Round "06"]
[TimeControl "180+1"]
[Date "2022.02.01"]
[WhiteClock "0:00:26"]
[BlackClock "0:00:56"]

1. Nf3 {[%clk 0:02:59]}  d5 {[%clk 0:02:59]} 2. c4 {[%clk 0:02:59]}  c6 {[%clk 0:02:59]} 3. e3 {[%clk 0:02:59]}  Nf6 {[%clk 0:02:59]} 4. Nc3 {[%clk 0:03:00]}  e6 {[%clk 0:02:58]} 5. Qc2 {[%clk 0:03:00]}  Bd6 {[%clk 0:02:58]} 6. b3 {[%clk 0:03:00]}  O-O {[%clk 0:02:58]} 7. Bb2 {[%clk 0:03:01]}  e5 {[%clk 0:02:58]} 8. cxd5 {[%clk 0:02:58]}  cxd5 {[%clk 0:02:59]} 9. Nb5 {[%clk 0:02:59]}  Nc6 {[%clk 0:02:59]} 10. Nxd6 {[%clk 0:02:49]}  Qxd6 {[%clk 0:03:00]} 11. Bb5 {[%clk 0:02:49]}  Nb4 {[%clk 0:02:59]} 12. Qb1 {[%clk 0:02:43]}  Qc5 {[%clk 0:02:59]} 13. Be2 {[%clk 0:02:19]}  Nc2+ {[%clk 0:02:57]} 14. Kd1 {[%clk 0:02:20]}  Nxa1 {[%clk 0:02:36]} 15. Qxa1 {[%clk 0:02:19]}  Ne4 {[%clk 0:02:34]} 16. Rf1 {[%clk 0:01:58]}  f6 {[%clk 0:02:30]} 17. d4 {[%clk 0:01:59]}  exd4 {[%clk 0:02:29]} 18. Bxd4 {[%clk 0:01:47]}  Qa5 {[%clk 0:02:26]} 19. Qb2 {[%clk 0:01:45]}  Bg4 {[%clk 0:02:23]} 20. h3 {[%clk 0:01:45]}  Bh5 {[%clk 0:02:23]} 21. g4 {[%clk 0:01:42]}  Bg6 {[%clk 0:02:15]} 22. Nh4 {[%clk 0:01:41]}  Rac8 {[%clk 0:02:10]} 23. Nxg6 {[%clk 0:01:38]}  hxg6 {[%clk 0:02:10]} 24. Bd3 {[%clk 0:01:28]}  Nc3+ {[%clk 0:01:55]} 25. Kd2 {[%clk 0:01:27]}  Na4+ {[%clk 0:01:32]} 26. b4 {[%clk 0:01:25]}  Nxb2 {[%clk 0:01:32]} 27. bxa5 {[%clk 0:01:25]}  Nxd3 {[%clk 0:01:32]} 28. Kxd3 {[%clk 0:01:26]}  a6 {[%clk 0:01:30]} 29. Rb1 {[%clk 0:01:24]}  Rf7 {[%clk 0:01:31]} 30. h4 {[%clk 0:01:21]}  Rc4 {[%clk 0:01:30]} 31. f3 {[%clk 0:00:44]}  Ra4 {[%clk 0:01:29]} 32. Bb6 {[%clk 0:00:44]}  Re7 {[%clk 0:01:17]} 33. Rb2 {[%clk 0:00:42]}  Ra3+ {[%clk 0:01:14]} 34. Kd2 {[%clk 0:00:42]}  Rd7 {[%clk 0:01:14]} 35. Ke2 {[%clk 0:00:37]}  Kf7 {[%clk 0:01:13]} 36. Rc2 {[%clk 0:00:37]}  Ke6 {[%clk 0:01:08]} 37. Kf2 {[%clk 0:00:37]}  Rd6 {[%clk 0:01:04]} 38. Rc7 {[%clk 0:00:32]}  Rxa2+ {[%clk 0:01:04]} 39. Kg3 {[%clk 0:00:33]}  Rd7 {[%clk 0:01:04]} 40. Rc8 {[%clk 0:00:34]}  Kf7 {[%clk 0:01:04]} 41. Kf4 {[%clk 0:00:30]}  Ra4+ {[%clk 0:01:03]} 42. Kg3 {[%clk 0:00:31]}  Rc4 {[%clk 0:01:02]} 43. Rb8 {[%clk 0:00:30]}  Rc6 {[%clk 0:01:01]} 44. Kf4 {[%clk 0:00:29]}  Re6 {[%clk 0:00:57]} 45. Bc5 {[%clk 0:00:26]}  Re8 {[%clk 0:00:56]} 0-1


[Site "https://www.chess.com"]

[Event "Titled Tuesday Blitz February 01 B 2022"]
[White "Rustemov, Alexander"]
[Black "Xiong, Jeffery"]
[WhiteFideId "4119002"]
[BlackFideId "2047640"]
[WhiteElo "2783"]
[BlackElo "2727"]
[Result "0-1"]
[Round "06"]
[TimeControl "180+1"]
[Date "2022.02.01"]
[WhiteClock "0:00:02"]
[BlackClock "0:00:51"]

1. d4 {[%clk 0:03:00]}  Nf6 {[%clk 0:03:00]} 2. c4 {[%clk 0:02:59]}  e6 {[%clk 0:03:01]} 3. Nf3 {[%clk 0:02:58]}  d5 {[%clk 0:03:02]} 4. g3 {[%clk 0:02:58]}  c6 {[%clk 0:03:00]} 5. Nbd2 {[%clk 0:02:53]}  Be7 {[%clk 0:02:56]} 6. Bg2 {[%clk 0:02:53]}  O-O {[%clk 0:02:57]} 7. O-O {[%clk 0:02:53]}  Nbd7 {[%clk 0:02:57]} 8. Qc2 {[%clk 0:02:53]}  b6 {[%clk 0:02:58]} 9. e4 {[%clk 0:02:51]}  dxc4 {[%clk 0:02:58]} 10. Nxc4 {[%clk 0:02:49]}  Bb7 {[%clk 0:02:58]} 11. Rd1 {[%clk 0:02:15]}  c5 {[%clk 0:02:55]} 12. e5 {[%clk 0:02:04]}  Nd5 {[%clk 0:02:53]} 13. dxc5 {[%clk 0:02:01]}  Nxc5 {[%clk 0:02:54]} 14. h4 {[%clk 0:01:56]}  h6 {[%clk 0:02:50]} 15. b3 {[%clk 0:01:48]}  Rc8 {[%clk 0:02:42]} 16. Bb2 {[%clk 0:01:47]}  b5 {[%clk 0:02:41]} 17. Nd6 {[%clk 0:01:35]}  Bxd6 {[%clk 0:02:41]} 18. exd6 {[%clk 0:01:35]}  Na4 {[%clk 0:02:41]} 19. Qd2 {[%clk 0:01:26]}  Nxb2 {[%clk 0:02:41]} 20. Qxb2 {[%clk 0:01:24]}  Qxd6 {[%clk 0:02:42]} 21. a3 {[%clk 0:01:08]}  Rc7 {[%clk 0:02:39]} 22. b4 {[%clk 0:01:04]}  Rfc8 {[%clk 0:02:38]} 23. Rac1 {[%clk 0:01:01]}  Rxc1 {[%clk 0:02:31]} 24. Rxc1 {[%clk 0:01:01]}  Rxc1+ {[%clk 0:02:32]} 25. Qxc1 {[%clk 0:01:01]}  Nb6 {[%clk 0:02:33]} 26. Qc3 {[%clk 0:00:44]}  Nc4 {[%clk 0:02:23]} 27. Nd4 {[%clk 0:00:39]}  Bxg2 {[%clk 0:02:24]} 28. Kxg2 {[%clk 0:00:39]}  a6 {[%clk 0:02:00]} 29. Kg1 {[%clk 0:00:28]}  Qe5 {[%clk 0:01:58]} 30. a4 {[%clk 0:00:18]}  Qd5 {[%clk 0:01:55]} 31. axb5 {[%clk 0:00:17]}  axb5 {[%clk 0:01:56]} 32. Nc2 {[%clk 0:00:13]}  e5 {[%clk 0:01:39]} 33. Ne3 {[%clk 0:00:13]}  Nxe3 {[%clk 0:01:30]} 34. Qxe3 {[%clk 0:00:13]}  Kf8 {[%clk 0:01:17]} 35. Qb6 {[%clk 0:00:11]}  Ke7 {[%clk 0:01:18]} 36. Qc7+ {[%clk 0:00:11]}  Kf6 {[%clk 0:01:18]} 37. Qb6+ {[%clk 0:00:11]}  Kf5 {[%clk 0:01:19]} 38. Qc7 {[%clk 0:00:11]}  Kg4 {[%clk 0:00:53]} 39. Qc8+ {[%clk 0:00:05]}  f5 {[%clk 0:00:53]} 40. Qc7 {[%clk 0:00:04]}  Kh3 {[%clk 0:00:51]} 41. Qc1 {[%clk 0:00:02]}  Qg2# {[%clk 0:00:51]} 0-1


[Site "https://www.chess.com"]

[Event "Titled Tuesday Blitz February 01 B 2022"]
[White "Senthil Maran K"]
[Black "Sjugirov, Sanan"]
[WhiteFideId "25035681"]
[BlackFideId "4189302"]
[WhiteElo "2194"]
[BlackElo "2602"]
[Result "0-1"]
[Round "06"]
[TimeControl "180+1"]
[Date "2022.02.01"]
[WhiteClock "0:00:09"]
[BlackClock "0:00:19"]

1. d4 {[%clk 0:03:00]}  Nf6 {[%clk 0:02:59]} 2. Nf3 {[%clk 0:03:00]}  g6 {[%clk 0:03:00]} 3. g3 {[%clk 0:03:01]}  Bg7 {[%clk 0:03:00]} 4. Bg2 {[%clk 0:03:01]}  O-O {[%clk 0:03:01]} 5. O-O {[%clk 0:03:02]}  d6 {[%clk 0:02:55]} 6. c4 {[%clk 0:03:02]}  c6 {[%clk 0:02:49]} 7. Nc3 {[%clk 0:03:02]}  Bf5 {[%clk 0:02:49]} 8. Re1 {[%clk 0:02:54]}  Ne4 {[%clk 0:02:48]} 9. Nxe4 {[%clk 0:02:42]}  Bxe4 {[%clk 0:02:49]} 10. Bh3 {[%clk 0:02:42]}  Bxf3 {[%clk 0:02:47]} 11. exf3 {[%clk 0:02:41]}  d5 {[%clk 0:02:44]} 12. Bg5 {[%clk 0:02:15]}  Re8 {[%clk 0:02:43]} 13. cxd5 {[%clk 0:02:08]}  cxd5 {[%clk 0:02:43]} 14. Qb3 {[%clk 0:01:43]}  Nc6 {[%clk 0:02:44]} 15. Qxb7 {[%clk 0:01:25]}  Nxd4 {[%clk 0:02:44]} 16. Kg2 {[%clk 0:00:30]}  f6 {[%clk 0:01:08]} 17. Be3 {[%clk 0:00:14]}  Nc2 {[%clk 0:01:08]} 18. Be6+ {[%clk 0:00:08]}  Kh8 {[%clk 0:01:08]} 19. Bxd5 {[%clk 0:00:04]}  Rb8 {[%clk 0:01:06]} 20. Qc6 {[%clk 0:00:04]}  Nb4 {[%clk 0:00:58]} 21. Qc4 {[%clk 0:00:02]}  Qxd5 {[%clk 0:00:57]} 22. Qxd5 {[%clk 0:00:03]}  Nxd5 {[%clk 0:00:58]} 23. Bxa7 {[%clk 0:00:03]}  Rxb2 {[%clk 0:00:58]} 24. Rad1 {[%clk 0:00:03]}  Rxa2 {[%clk 0:00:57]} 25. Bc5 {[%clk 0:00:02]}  Nc3 {[%clk 0:00:29]} 26. Rd3 {[%clk 0:00:02]}  Re2 {[%clk 0:00:19]} 27. Rxe2 {[%clk 0:00:02]}  Nxe2 {[%clk 0:00:20]} 28. Re3 {[%clk 0:00:03]}  Nc1 {[%clk 0:00:20]} 29. Rxe7 {[%clk 0:00:04]}  Rxe7 {[%clk 0:00:20]} 30. Bxe7 {[%clk 0:00:05]}  f5 {[%clk 0:00:21]} 31. f4 {[%clk 0:00:05]}  Nd3 {[%clk 0:00:21]} 32. Kf3 {[%clk 0:00:05]}  Kg8 {[%clk 0:00:22]} 33. Ke3 {[%clk 0:00:05]}  Nb2 {[%clk 0:00:22]} 34. Bb4 {[%clk 0:00:05]}  Kf7 {[%clk 0:00:21]} 35. Ke2 {[%clk 0:00:05]}  Ke6 {[%clk 0:00:22]} 36. h3 {[%clk 0:00:06]}  Kd5 {[%clk 0:00:22]} 37. g4 {[%clk 0:00:07]}  Nc4 {[%clk 0:00:21]} 38. Kf3 {[%clk 0:00:06]}  Bd4 {[%clk 0:00:21]} 39. Kg3 {[%clk 0:00:06]}  Bf6 {[%clk 0:00:20]} 40. Be1 {[%clk 0:00:06]}  Ke4 {[%clk 0:00:20]} 41. f3+ {[%clk 0:00:06]}  Kd3 {[%clk 0:00:20]} 42. Bf2 {[%clk 0:00:07]}  Ke2 {[%clk 0:00:20]} 43. h4 {[%clk 0:00:07]}  Nd2 {[%clk 0:00:19]} 44. h5 {[%clk 0:00:07]}  Nxf3 {[%clk 0:00:18]} 45. hxg6 {[%clk 0:00:07]}  hxg6 {[%clk 0:00:18]} 46. gxf5 {[%clk 0:00:07]}  gxf5 {[%clk 0:00:19]} 47. Bc5 {[%clk 0:00:08]}  Bh4+ {[%clk 0:00:18]} 48. Kg2 {[%clk 0:00:08]}  Be1 {[%clk 0:00:18]} 49. Kh3 {[%clk 0:00:08]}  Bd2 {[%clk 0:00:18]} 50. Kg3 {[%clk 0:00:08]}  Ne1 {[%clk 0:00:18]} 51. Kh4 {[%clk 0:00:08]}  Kd3 {[%clk 0:00:18]} 52. Kg5 {[%clk 0:00:08]}  Ke4 {[%clk 0:00:18]} 53. Bd6 {[%clk 0:00:08]}  Nd3 {[%clk 0:00:18]} 54. Bc7 {[%clk 0:00:08]}  Bxf4+ {[%clk 0:00:19]} 55. Kf6 {[%clk 0:00:08]}  Bxc7 {[%clk 0:00:19]} 56. Kg5 {[%clk 0:00:07]}  f4 {[%clk 0:00:19]} 57. Kg4 {[%clk 0:00:08]}  f3 {[%clk 0:00:20]} 58. Kh3 {[%clk 0:00:09]}  Ke3 {[%clk 0:00:19]} 59. Kg4 {[%clk 0:00:09]}  f2 {[%clk 0:00:19]} 60. Kh4 {[%clk 0:00:09]}  f1=Q {[%clk 0:00:19]} 61. Kg5 {[%clk 0:00:10]}  Qf4+ {[%clk 0:00:19]} 62. Kh5 {[%clk 0:00:09]}  Qg3 {[%clk 0:00:19]} 0-1


[Site "https://www.chess.com"]

[Event "Titled Tuesday Blitz February 01 B 2022"]
[White "Steinberg, Nitzan"]
[Black "Koutlas, Nikolaos"]
[WhiteFideId "2801795"]
[BlackFideId "25827138"]
[WhiteElo "2440"]
[BlackElo "1610"]
[Result "1-0"]
[Round "06"]
[TimeControl "180+1"]
[Date "2022.02.01"]
[WhiteClock "0:00:49"]
[BlackClock "0:00:03"]

1. d4 {[%clk 0:03:00]}  Nf6 {[%clk 0:02:59]} 2. Nf3 {[%clk 0:03:00]}  d5 {[%clk 0:02:59]} 3. c4 {[%clk 0:02:59]}  e6 {[%clk 0:02:59]} 4. Nc3 {[%clk 0:02:58]}  dxc4 {[%clk 0:02:59]} 5. e3 {[%clk 0:02:57]}  a6 {[%clk 0:02:58]} 6. a4 {[%clk 0:02:56]}  c5 {[%clk 0:02:57]} 7. Bxc4 {[%clk 0:02:56]}  Nbd7 {[%clk 0:02:57]} 8. O-O {[%clk 0:02:56]}  cxd4 {[%clk 0:02:55]} 9. exd4 {[%clk 0:02:56]}  Nb6 {[%clk 0:02:53]} 10. Bb3 {[%clk 0:02:51]}  Be7 {[%clk 0:02:53]} 11. Re1 {[%clk 0:02:51]}  O-O {[%clk 0:02:52]} 12. Bg5 {[%clk 0:02:41]}  Nbd5 {[%clk 0:02:47]} 13. Rc1 {[%clk 0:02:34]}  h6 {[%clk 0:02:47]} 14. Bh4 {[%clk 0:02:34]}  Nxc3 {[%clk 0:02:27]} 15. Rxc3 {[%clk 0:02:32]}  Bd7 {[%clk 0:02:26]} 16. Ne5 {[%clk 0:02:29]}  Rc8 {[%clk 0:02:20]} 17. Rg3 {[%clk 0:02:25]}  Bc6 {[%clk 0:01:53]} 18. Bc2 {[%clk 0:01:45]}  Qa5 {[%clk 0:00:33]} 19. Rf1 {[%clk 0:01:30]}  Rfe8 {[%clk 0:00:26]} 20. Qc1 {[%clk 0:01:12]}  Nh5 {[%clk 0:00:19]} 21. Qxh6 {[%clk 0:01:10]}  f5 {[%clk 0:00:03]} 22. Qxe6+ {[%clk 0:01:07]}  Kh8 {[%clk 0:00:03]} 23. Qxf5 {[%clk 0:00:49]} 1-0


[Site "https://www.chess.com"]

[Event "Titled Tuesday Blitz February 01 B 2022"]
[White "Sviridov, Valery"]
[Black "Garcia Martin, Marta"]
[WhiteFideId "4120680"]
[BlackFideId "32084030"]
[WhiteElo "2454"]
[BlackElo "2102"]
[Result "1-0"]
[Round "06"]
[TimeControl "180+1"]
[Date "2022.02.01"]
[WhiteClock "0:00:52"]
[BlackClock "0:00:03"]

1. Nf3 {[%clk 0:03:00]}  b6 {[%clk 0:02:53]} 2. g3 {[%clk 0:03:01]}  Bb7 {[%clk 0:02:53]} 3. Bg2 {[%clk 0:03:01]}  Nf6 {[%clk 0:02:54]} 4. O-O {[%clk 0:03:01]}  g6 {[%clk 0:02:53]} 5. b3 {[%clk 0:02:59]}  Bg7 {[%clk 0:02:54]} 6. Bb2 {[%clk 0:03:00]}  O-O {[%clk 0:02:54]} 7. c4 {[%clk 0:03:00]}  e6 {[%clk 0:02:54]} 8. d3 {[%clk 0:03:00]}  d5 {[%clk 0:02:53]} 9. Nbd2 {[%clk 0:03:01]}  c5 {[%clk 0:02:52]} 10. Rc1 {[%clk 0:03:00]}  Nc6 {[%clk 0:02:52]} 11. e3 {[%clk 0:03:00]}  Qe7 {[%clk 0:02:49]} 12. Qe2 {[%clk 0:03:00]}  Rfd8 {[%clk 0:02:48]} 13. a3 {[%clk 0:03:00]}  Rac8 {[%clk 0:02:48]} 14. Rfd1 {[%clk 0:03:00]}  e5 {[%clk 0:02:44]} 15. cxd5 {[%clk 0:02:57]}  Nxd5 {[%clk 0:02:44]} 16. Nc4 {[%clk 0:02:50]}  b5 {[%clk 0:02:41]} 17. Ncd2 {[%clk 0:02:50]}  a6 {[%clk 0:02:34]} 18. Rc2 {[%clk 0:02:49]}  Nc7 {[%clk 0:02:11]} 19. Rdc1 {[%clk 0:02:47]}  Ne6 {[%clk 0:02:11]} 20. Ne4 {[%clk 0:02:46]}  Na5 {[%clk 0:02:05]} 21. Ned2 {[%clk 0:02:15]}  Qd6 {[%clk 0:01:44]} 22. b4 {[%clk 0:01:54]}  cxb4 {[%clk 0:01:35]} 23. Rxc8 {[%clk 0:01:55]}  Rxc8 {[%clk 0:01:23]} 24. Rxc8+ {[%clk 0:01:55]}  Bxc8 {[%clk 0:01:24]} 25. Ne4 {[%clk 0:01:55]}  Qe7 {[%clk 0:01:19]} 26. axb4 {[%clk 0:01:55]}  Nc6 {[%clk 0:01:12]} 27. Bc3 {[%clk 0:01:52]}  Nxb4 {[%clk 0:01:12]} 28. Nxe5 {[%clk 0:01:47]}  Nd5 {[%clk 0:01:02]} 29. Bb2 {[%clk 0:01:44]}  f5 {[%clk 0:00:36]} 30. Nd2 {[%clk 0:01:36]}  Bb7 {[%clk 0:00:36]} 31. h4 {[%clk 0:01:27]}  Qb4 {[%clk 0:00:31]} 32. Ndf3 {[%clk 0:01:28]}  a5 {[%clk 0:00:26]} 33. h5 {[%clk 0:01:28]}  a4 {[%clk 0:00:25]} 34. hxg6 {[%clk 0:01:25]}  hxg6 {[%clk 0:00:25]} 35. d4 {[%clk 0:01:19]}  Ne7 {[%clk 0:00:19]} 36. Nd3 {[%clk 0:01:13]}  Qc4 {[%clk 0:00:16]} 37. Nd2 {[%clk 0:01:12]}  Qc7 {[%clk 0:00:14]} 38. Nb4 {[%clk 0:01:12]}  Bxg2 {[%clk 0:00:12]} 39. Kxg2 {[%clk 0:01:13]}  Qb7+ {[%clk 0:00:10]} 40. Kg1 {[%clk 0:01:12]}  Ng5 {[%clk 0:00:08]} 41. Qf1 {[%clk 0:00:57]}  Nd5 {[%clk 0:00:06]} 42. Qg2 {[%clk 0:00:54]}  Ne4 {[%clk 0:00:06]} 43. Nxe4 {[%clk 0:00:52]}  fxe4 {[%clk 0:00:04]} 44. Qxe4 {[%clk 0:00:53]}  a3 {[%clk 0:00:03]} 45. Bxa3 {[%clk 0:00:52]} 1-0


[Site "https://www.chess.com"]

[Event "Titled Tuesday Blitz February 01 B 2022"]
[White "Turski, Bartlomiej"]
[Black "Pranav, V"]
[WhiteFideId "21810567"]
[BlackFideId "25060783"]
[WhiteElo "1935"]
[BlackElo "2349"]
[Result "0-1"]
[Round "06"]
[TimeControl "180+1"]
[Date "2022.02.01"]
[WhiteClock "0:00:09"]
[BlackClock "0:01:33"]

1. e4 {[%clk 0:02:54]}  e5 {[%clk 0:03:00]} 2. Nf3 {[%clk 0:02:51]}  Nf6 {[%clk 0:02:59]} 3. Nxe5 {[%clk 0:02:43]}  d6 {[%clk 0:02:59]} 4. Nf3 {[%clk 0:02:34]}  Nxe4 {[%clk 0:02:59]} 5. Nc3 {[%clk 0:02:32]}  Nxc3 {[%clk 0:02:58]} 6. dxc3 {[%clk 0:02:30]}  d5 {[%clk 0:02:58]} 7. Bd3 {[%clk 0:02:27]}  Be7 {[%clk 0:02:57]} 8. Bf4 {[%clk 0:02:27]}  O-O {[%clk 0:02:57]} 9. Qd2 {[%clk 0:02:25]}  Nd7 {[%clk 0:02:53]} 10. O-O-O {[%clk 0:02:20]}  Nc5 {[%clk 0:02:52]} 11. h4 {[%clk 0:02:05]}  c6 {[%clk 0:02:51]} 12. Ng5 {[%clk 0:01:48]}  h6 {[%clk 0:02:49]} 13. f3 {[%clk 0:00:41]}  a5 {[%clk 0:02:06]} 14. g4 {[%clk 0:00:31]}  a4 {[%clk 0:02:05]} 15. Nh7 {[%clk 0:00:21]}  Re8 {[%clk 0:01:50]} 16. Bxh6 {[%clk 0:00:19]}  Nxd3+ {[%clk 0:01:50]} 17. cxd3 {[%clk 0:00:17]}  Kxh7 {[%clk 0:01:50]} 18. g5 {[%clk 0:00:17]}  gxh6 {[%clk 0:01:46]} 19. gxh6 {[%clk 0:00:18]}  Bf8 {[%clk 0:01:43]} 20. Kb1 {[%clk 0:00:15]}  a3 {[%clk 0:01:42]} 21. Rdg1 {[%clk 0:00:12]}  Bxh6 {[%clk 0:01:37]} 22. Qf2 {[%clk 0:00:11]}  Qf6 {[%clk 0:01:36]} 23. Rh2 {[%clk 0:00:10]}  Bf5 {[%clk 0:01:36]} 24. Kc2 {[%clk 0:00:09]}  axb2 {[%clk 0:01:36]} 25. Rhg2 {[%clk 0:00:09]}  b1=Q+ {[%clk 0:01:33]} 0-1


[Site "https://www.chess.com"]